bitfinex/quotes_BTCUSD_20240727
["timestamp","ask_amount","ask_price","bid_price","bid_amount"]
[1722081016566,0.02380827,68318.0,68317.0,1.36798135]
[1722081016759,0.00084,68318.0,68317.0,1.36798135]
[1722081018241,0.00084,68318.0,68317.0,1.36798142]
[1722081018479,0.00084,68318.0,68317.0,1.36642722]
[1722081018689,0.00084,68318.0,68317.0,1.36798142]
[1722081018890,0.00084,68318.0,68317.0,1.36642722]
[1722081019563,0.00084,68318.0,68317.0,1.36798142]
[1722081020264,0.02380893,68318.0,68317.0,1.36798142]
[1722081021231,0.00084,68318.0,68317.0,1.36642722]
[1722081021659,0.00084,68318.0,68317.0,1.36643018]
[1722081024726,0.02380893,68318.0,68317.0,1.36643018]
[1722081025131,0.00084,68318.0,68317.0,1.3664299]
[1722081026574,0.00084,68318.0,68317.0,1.3679841]
[1722081027673,0.00084,68318.0,68317.0,1.3664299]
[1722081028308,0.02380877,68318.0,68317.0,1.3679841]
[1722081028507,0.02380877,68318.0,68317.0,1.36798165]
[1722081029842,0.00084,68318.0,68317.0,1.36642745]
[1722081030579,0.00084,68318.0,68317.0,1.41033196]
[1722081032025,0.00084,68318.0,68317.0,1.41031841]
[1722081032424,0.00084,68318.0,68317.0,1.41031859]
[1722081032585,0.00084,68318.0,68317.0,1.41187279]
[1722081032787,0.00084,68318.0,68317.0,1.41031859]
[1722081034345,0.02380877,68318.0,68317.0,1.41031859]
[1722081034873,0.00084,68318.0,68317.0,1.36642423]
[1722081035867,0.00084,68318.0,68317.0,1.36642845]
[1722081036927,0.00084,68318.0,68317.0,1.36642842]
[1722081039028,0.00084,68318.0,68317.0,1.36642841]
[1722081040845,0.02380882,68318.0,68317.0,1.36642841]
[1722081041045,0.02380882,68318.0,68317.0,1.2463602]
[1722081041237,0.02380882,68318.0,68317.0,1.36798261]
[1722081041378,0.02380882,68318.0,68317.0,1.36642841]
[1722081041984,0.00084,68318.0,68317.0,1.36642841]
[1722081042580,0.00084,68318.0,68317.0,1.244806]
[1722081042789,0.00084,68318.0,68317.0,1.36642841]
[1722081043436,0.00084,68318.0,68317.0,1.41034142]
[1722081043790,0.00084,68318.0,68317.0,0.66293742]
[1722081043992,0.09223662,68318.0,68317.0,0.2905042]
[1722081044231,0.09223662,68318.0,68317.0,0.28895]
[1722081044232,0.15623662,68318.0,68317.0,0.28895]
[1722081044816,0.15623662,68318.0,68317.0,0.27495]
[1722081045193,0.15623662,68318.0,68317.0,0.28095]
[1722081046016,0.14384,68318.0,68317.0,0.28095]
[1722081046223,0.14384,68318.0,68317.0,0.26695]
[1722081046441,0.15612929,68318.0,68317.0,0.27495]
[1722081046632,0.15612929,68318.0,68317.0,0.128574]
[1722081046828,0.59525129,68318.0,68317.0,0.0164782]
[1722081047028,0.59525129,68318.0,68317.0,0.014924]
[1722081047309,0.88799929,68318.0,68317.0,0.014924]
[1722081047622,0.88799929,68318.0,68317.0,0.008924]
[1722081047822,0.88799929,68318.0,68317.0,0.006924]
[1722081048161,0.88799929,68318.0,68317.0,0.013924]
[1722081048372,0.88799929,68318.0,68317.0,0.007924]
[1722081048570,1.29890512,68318.0,68317.0,0.007924]
[1722081049403,1.30958734,68318.0,68317.0,0.007924]
[1722081049606,1.20382635,68318.0,68317.0,0.007924]
[1722081049766,1.18085484,68318.0,68317.0,0.007924]
[1722081049966,1.18085484,68318.0,68317.0,0.000924]
[1722081050217,1.18085484,68318.0,68317.0,0.007924]
[1722081050415,1.18085484,68318.0,68317.0,0.012924]
[1722081050594,1.18085484,68318.0,68317.0,0.005924]
[1722081051005,1.18585484,68318.0,68317.0,0.000924]
[1722081051228,1.18685484,68318.0,68317.0,0.001924]
[1722081051560,1.19185484,68318.0,68317.0,0.002924]
[1722081051708,1.18085484,68318.0,68317.0,0.000924]
[1722081052181,1.18685484,68318.0,68317.0,0.000924]
[1722081052898,1.174458,68318.0,68317.0,0.000924]
[1722081053104,1.33792206,68318.0,68317.0,0.000924]
[1722081053617,1.20386166,68318.0,68317.0,0.000924]
[1722081053743,1.20986166,68318.0,68317.0,0.002924]
[1722081053936,1.20486166,68318.0,68317.0,0.001924]
[1722081054143,1.20386166,68318.0,68317.0,0.001924]
[1722081054399,1.18588866,68318.0,68317.0,0.001924]
[1722081054598,1.18688866,68318.0,68317.0,0.001924]
[1722081054747,1.19188866,68318.0,68317.0,0.002924]
[1722081054949,0.89814066,68318.0,68317.0,0.001924]
[1722081055904,0.89914066,68318.0,68317.0,0.002924]
[1722081056528,0.89915114,68318.0,68317.0,0.002924]
[1722081056686,0.91159228,68318.0,68317.0,0.002924]
[1722081057072,0.61884428,68318.0,68317.0,0.002924]
[1722081059576,0.60640314,68318.0,68317.0,0.002924]
[1722081059774,0.61884163,68318.0,68317.0,0.002924]
[1722081060477,0.64181422,68318.0,68317.0,0.002924]
[1722081060977,0.61884163,68318.0,68317.0,0.002924]
[1722081061460,0.32609363,68318.0,68317.0,0.002924]
[1722081061964,0.17971963,68318.0,68317.0,0.002924]
[1722081062116,0.24609363,68318.0,68317.0,0.0034782]
[1722081062335,0.09971963,68318.0,68317.0,0.0034782]
[1722081062501,0.24609363,68318.0,68317.0,0.0034782]
[1722081063131,0.23365514,68318.0,68317.0,0.0034782]
[1722081063310,0.23365514,68318.0,68317.0,0.0024782]
[1722081063311,0.23609485,68318.0,68317.0,0.0024782]
[1722081063517,0.23909485,68318.0,68317.0,0.0024782]
[1722081064699,0.26206682,68318.0,68317.0,0.0024782]
[1722081065227,0.26106682,68318.0,68317.0,0.0024782]
[1722081065594,0.10225168,68318.0,68317.0,0.0024782]
[1722081065786,0.10025168,68318.0,68317.0,0.0024782]
[1722081065986,0.07727971,68318.0,68317.0,0.000924]
[1722081066165,0.07727971,68318.0,68317.0,0.002924]
[1722081066373,0.06484,68318.0,68317.0,0.002924]
[1722081066942,0.22364084,68318.0,68317.0,0.002924]
[1722081067130,0.51638884,68318.0,68317.0,0.002924]
[1722081067309,0.22364084,68318.0,68317.0,0.002924]
[1722081068913,0.01326684,68318.0,68317.0,0.002924]
[1722081069552,0.01326684,68318.0,68317.0,0.0044782]
[1722081069709,0.00084,68318.0,68317.0,0.0044782]
[1722081069903,0.00084,68318.0,68317.0,0.002924]
[1722081070105,0.01326306,68318.0,68317.0,0.002924]
[1722081071557,0.01326306,68318.0,68317.0,0.734804]
[1722081071758,0.01326306,68318.0,68317.0,0.607752]
[1722081072571,0.00084,68318.0,68317.0,0.607752]
[1722081072765,0.01325812,68318.0,68317.0,0.607752]
[1722081073363,0.00084,68318.0,68317.0,0.607752]
[1722081073541,0.01329458,68318.0,68317.0,0.6093062]
[1722081073750,0.04872092,68318.0,68317.0,0.6093062]
[1722081074290,0.02574916,68318.0,68317.0,0.607752]
[1722081075729,0.02574916,68318.0,68317.0,0.900504]
[1722081075903,0.01329458,68318.0,68317.0,0.900504]
[1722081076640,0.00084,68318.0,68317.0,0.900504]
[1722081077701,0.0132953,68318.0,68317.0,0.900504]
[1722081078310,0.0132953,68318.0,68317.0,0.607752]
[1722081079146,0.0132953,68318.0,68317.0,0.523452]
[1722081080311,0.00084,68318.0,68317.0,0.523452]
[1722081080515,0.01330374,68318.0,68317.0,0.523452]
[1722081081721,0.03627571,68318.0,68317.0,0.523452]
[1722081082689,0.01330374,68318.0,68317.0,0.523452]
[1722081083470,0.01330374,68318.0,68317.0,0.816204]
[1722081083690,0.00084,68318.0,68317.0,0.816204]
[1722081083977,0.01330187,68318.0,68317.0,0.900504]
[1722081085933,0.03627384,68318.0,68317.0,0.900504]
[1722081086418,0.03627384,68318.0,68317.0,0.607752]
[1722081086849,0.01330187,68318.0,68317.0,0.607752]
[1722081090042,0.03627384,68318.0,68317.0,0.607752]
[1722081091296,0.01330187,68318.0,68317.0,0.607752]
[1722081092667,0.01330187,68318.0,68317.0,0.1493]
[1722081092873,0.01330187,68318.0,68317.0,0.002924]
[1722081093078,0.01330187,68318.0,68317.0,0.1508542]
[1722081093549,0.01330187,68318.0,68317.0,0.1493]
[1722081093901,0.00084,68318.0,68317.0,0.1493]
[1722081094100,0.00084,68318.0,68317.0,0.1508542]
[1722081094300,0.01328987,68318.0,68317.0,0.1508542]
[1722081094956,0.01328987,68318.0,68317.0,0.0044782]
[1722081095309,0.01328987,68318.0,68317.0,0.1508542]
[1722081095508,0.01328987,68318.0,68317.0,0.1493]
[1722081095707,0.01328987,68318.0,68317.0,0.0044782]
[1722081096340,0.01328987,68318.0,68317.0,0.1493]
[1722081097574,0.03626184,68318.0,68317.0,0.1508542]
[1722081097776,0.03626184,68318.0,68317.0,0.0044782]
[1722081097975,0.03626184,68318.0,68317.0,0.1508542]
[1722081098196,0.51601187,68318.0,68317.0,0.002924]
[1722081098401,0.22326387,68318.0,68317.0,0.002924]
[1722081098747,0.51601187,68318.0,68317.0,0.002924]
[1722081099482,0.51601187,68318.0,68317.0,0.000924]
[1722081099718,0.51701187,68318.0,68317.0,0.000924]
[1722081100045,0.22426387,68318.0,68317.0,0.000924]
[1722081100330,0.01328987,68318.0,68317.0,0.002924]
[1722081100464,0.01328987,68318.0,68317.0,0.149024]
[1722081100671,0.01328987,68318.0,68317.0,0.1505782]
[1722081101068,0.00084,68318.0,68317.0,0.2969542]
[1722081101271,0.01334279,68318.0,68317.0,0.2934]
[1722081101445,0.02684558,68318.0,68317.0,0.2934]
[1722081101746,0.06232026,68318.0,68317.0,0.2934]
[1722081102824,0.06132026,68318.0,68317.0,0.2934]
[1722081103032,0.03834832,68318.0,68317.0,0.2934]
[1722081103242,0.03834832,68318.0,68317.0,0.880904]
[1722081106543,0.01334274,68318.0,68317.0,0.880904]
[1722081107755,0.03631537,68318.0,68317.0,0.880904]
[1722081107973,0.00084,68318.0,68317.0,0.880904]
[1722081108174,0.01335379,68318.0,68317.0,0.880904]
[1722081111541,0.01334248,68318.0,68317.0,0.880904]
[1722081114150,0.03631506,68318.0,68317.0,0.880904]
[1722081114867,0.02381258,68318.0,68317.0,0.880904]
[1722081115055,0.03631054,68318.0,68317.0,0.880904]
[1722081115473,0.01333796,68318.0,68317.0,0.880904]
[1722081118545,0.00084,68318.0,68317.0,0.880904]
[1722081118746,0.01334258,68318.0,68317.0,0.880904]
[1722081121933,0.00084,68318.0,68317.0,0.880904]
[1722081122155,0.03632009,68318.0,68317.0,0.880904]
[1722081122539,0.01334778,68318.0,68317.0,0.880904]
[1722081125293,0.02381231,68318.0,68317.0,0.880904]
[1722081125496,0.03631987,68318.0,68317.0,0.880904]
[1722081127244,0.01334756,68318.0,68317.0,0.880904]
[1722081128728,0.00084,68318.0,68317.0,0.880904]
[1722081128923,0.01335069,68318.0,68317.0,0.880904]
[1722081129137,0.00084,68318.0,68317.0,0.880904]
[1722081130091,0.01335069,68318.0,68317.0,0.880904]
[1722081131678,0.036323,68318.0,68317.0,0.880904]
[1722081132355,0.03632319,68318.0,68317.0,0.880904]
[1722081133808,0.03632319,68318.0,68317.0,0.816104]
[1722081134773,0.01335088,68318.0,68317.0,0.816104]
[1722081137824,0.03632316,68318.0,68317.0,0.816104]
[1722081139065,0.02381228,68318.0,68317.0,0.816104]
[1722081139276,0.01339985,68318.0,68317.0,0.816104]
[1722081142723,0.00084,68318.0,68317.0,0.816104]
[1722081142902,0.01340093,68318.0,68317.0,0.816104]
[1722081143079,0.00084,68318.0,68317.0,0.816104]
[1722081143280,0.01340093,68318.0,68317.0,0.816104]
[1722081145881,0.03637321,68318.0,68317.0,0.816104]
[1722081146205,0.02381228,68318.0,68317.0,0.816104]
[1722081146407,0.03637011,68318.0,68317.0,0.816104]
[1722081147642,0.01339783,68318.0,68317.0,0.816104]
[1722081149462,0.00084,68318.0,68317.0,0.816104]
[1722081149784,0.0133785,68318.0,68317.0,0.816104]
[1722081149947,0.025917,68318.0,68317.0,0.816104]
[1722081151506,0.025917,68318.0,68317.0,0.084224]
[1722081151707,0.233891,68318.0,68317.0,0.002924]
[1722081152447,0.526639,68318.0,68317.0,0.002924]
[1722081152575,0.233891,68318.0,68317.0,0.002924]
[1722081153203,0.2213525,68318.0,68317.0,0.002924]
[1722081153443,0.23390866,68318.0,68317.0,0.002924]
[1722081155287,0.52665666,68318.0,68317.0,0.002924]
[1722081156540,0.5141005,68318.0,68317.0,0.002924]
[1722081156955,0.52665952,68318.0,68317.0,0.002924]
[1722081157606,0.51412102,68318.0,68317.0,0.002924]
[1722081159942,0.501562,68318.0,68317.0,0.002924]
[1722081160096,0.51411471,68318.0,68317.0,0.002924]
[1722081162056,0.52453442,68318.0,68317.0,0.002924]
[1722081162990,0.81728242,68318.0,68317.0,0.002924]
[1722081163471,0.82983039,68318.0,68317.0,0.002924]
[1722081163675,0.81728242,68318.0,68317.0,0.002924]
[1722081173650,0.82982932,68318.0,68317.0,0.002924]
[1722081173986,0.82982932,68318.0,68317.0,0.000924]
[1722081174323,0.8068569,68318.0,68317.0,0.000924]
[1722081174520,1.0996049,68318.0,68317.0,0.000924]
[1722081174870,1.1036049,68318.0,68317.0,0.000924]
[1722081175282,1.1026049,68318.0,68317.0,0.000924]
[1722081175689,1.1036049,68318.0,68317.0,0.000924]
[1722081176131,1.1026049,68318.0,68317.0,0.000924]
[1722081176269,1.1036049,68318.0,68317.0,0.001924]
[1722081176883,0.74926753,68318.0,68317.0,0.001924]
[1722081177541,0.7692401,68318.0,68317.0,0.001924]
[1722081177954,0.75026753,68318.0,68317.0,0.002924]
[1722081179343,0.75026753,68318.0,68317.0,0.082624]
[1722081180154,0.73771,68318.0,68317.0,0.082624]
[1722081180371,0.75028395,68318.0,68317.0,0.082624]
[1722081181035,0.77325635,68318.0,68317.0,0.082624]
[1722081183035,0.48050835,68318.0,68317.0,0.147324]
[1722081183503,0.18776035,68318.0,68317.0,0.147324]
[1722081183643,0.1751864,68318.0,68317.0,0.147324]
[1722081183872,0.18777075,68318.0,68317.0,0.147324]
[1722081184299,0.18777075,68318.0,68317.0,0.082624]
[1722081186481,0.16479835,68318.0,68317.0,0.082624]
[1722081187042,0.152214,68318.0,68317.0,0.082624]
[1722081187272,0.16479373,68318.0,68317.0,0.082624]
[1722081189632,0.18776609,68318.0,68317.0,0.082624]
[1722081190355,0.17518636,68318.0,68317.0,0.082624]
[1722081190559,0.152214,68318.0,68317.0,0.082624]
[1722081190821,0.16478991,68318.0,68317.0,0.082624]
[1722081191181,0.16078991,68318.0,68317.0,0.081624]
[1722081191608,0.15978991,68318.0,68317.0,0.080624]
[1722081192008,0.01441591,68318.0,68317.0,0.080624]
[1722081192210,0.01441591,68318.0,68317.0,0.2927]
[1722081192410,0.01441591,68318.0,68317.0,0.585452]
[1722081194083,0.02481236,68318.0,68317.0,0.585452]
[1722081194298,0.01442981,68318.0,68317.0,0.585452]
[1722081194525,0.02701962,68318.0,68317.0,0.585452]
[1722081195240,0.01701962,68318.0,68317.0,0.585452]
[1722081197391,0.00442981,68318.0,68317.0,0.585452]
[1722081197708,0.03907157,68318.0,68317.0,0.585452]
[1722081198109,0.01609924,68318.0,68317.0,0.585452]
[1722081198347,0.01166943,68318.0,68317.0,0.585452]
[1722081198547,0.00084,68320.0,68319.0,0.224972]
[1722081198798,0.01252198,68320.0,68319.0,0.224972]
[1722081199818,0.01252198,68320.0,68319.0,0.0786]
[1722081199957,0.01452198,68320.0,68319.0,0.0786]
[1722081200155,0.01452198,68320.0,68319.0,0.224972]
[1722081200561,0.00284,68320.0,68319.0,0.224972]
[1722081200961,0.01453942,68320.0,68319.0,0.224972]
[1722081201161,0.00284,68320.0,68319.0,0.224972]
[1722081201384,0.01453942,68320.0,68319.0,0.224972]
[1722081204218,0.00284,68320.0,68319.0,0.224972]
[1722081204436,0.00284,68320.0,68319.0,0.517716]
[1722081204437,0.01451137,68320.0,68319.0,0.517716]
[1722081204647,0.00284,68320.0,68319.0,0.583416]
[1722081205176,0.01451137,68320.0,68319.0,0.583416]
[1722081206209,0.03748349,68320.0,68319.0,0.583416]
[1722081206553,0.01451137,68320.0,68319.0,0.583416]
[1722081207534,0.00284,68320.0,68319.0,0.583416]
[1722081207738,0.0145275,68320.0,68319.0,0.583416]
[1722081209737,0.03749962,68320.0,68319.0,0.583416]
[1722081209940,0.0145275,68320.0,68319.0,0.583416]
[1722081210980,0.00284,68320.0,68319.0,0.583416]
[1722081211179,0.01449932,68320.0,68319.0,0.583416]
[1722081213318,0.03547144,68320.0,68319.0,0.584416]
[1722081213524,0.03547144,68320.0,68319.0,0.587416]
[1722081214400,0.02381212,68320.0,68319.0,0.587416]
[1722081214622,0.03547858,68320.0,68319.0,0.587416]
[1722081215341,0.01250646,68320.0,68319.0,0.587416]
[1722081215545,0.01250646,68320.0,68319.0,0.294672]
[1722081217973,0.00084,68320.0,68319.0,0.294672]
[1722081218174,0.01246241,68320.0,68319.0,0.294672]
[1722081218376,0.02381212,68320.0,68319.0,0.294672]
[1722081218585,0.03543453,68320.0,68319.0,0.294672]
[1722081219769,0.01246241,68320.0,68319.0,0.294672]
[1722081221312,0.00084,68320.0,68319.0,0.294672]
[1722081221494,0.0124645,68320.0,68319.0,0.294672]
[1722081224310,0.03543662,68320.0,68319.0,0.294672]
[1722081224870,0.03543662,68320.0,68319.0,0.0826]
[1722081225716,0.03543662,68320.0,68319.0,0.228972]
[1722081226347,0.0124645,68320.0,68319.0,0.228972]
[1722081227351,0.00084,68320.0,68319.0,0.228972]
[1722081227565,0.01244039,68320.0,68319.0,0.228972]
[1722081228465,0.00084,68320.0,68319.0,0.228972]
[1722081228641,0.0124334,68320.0,68319.0,0.228972]
[1722081228848,0.00084,68320.0,68319.0,0.228972]
[1722081229047,0.0124334,68320.0,68319.0,0.228972]
[1722081229447,0.03540548,68320.0,68319.0,0.228972]
[1722081229662,0.0124334,68320.0,68319.0,0.228972]
[1722081230912,0.0124334,68320.0,68319.0,0.0826]
[1722081233399,0.03540552,68320.0,68319.0,0.0826]
[1722081235484,0.02381212,68320.0,68319.0,0.0826]
[1722081235605,0.03541942,68320.0,68319.0,0.0826]
[1722081236496,0.03541942,68320.0,68319.0,0.228972]
[1722081236800,0.03541942,68320.0,68319.0,0.521716]
[1722081236988,0.03541942,68320.0,68319.0,0.228972]
[1722081237395,0.03541942,68320.0,68319.0,0.521716]
[1722081239413,0.0124473,68320.0,68319.0,0.521716]
[1722081242229,0.02381212,68320.0,68319.0,0.521716]
[1722081242441,0.03546373,68320.0,68319.0,0.521716]
[1722081245643,0.02381212,68320.0,68319.0,0.521716]
[1722081245845,0.03546223,68320.0,68319.0,0.521716]
[1722081246676,0.01249011,68320.0,68319.0,0.521716]
[1722081248432,0.01249011,68320.0,68319.0,0.228972]
[1722081248626,0.01249011,68320.0,68319.0,0.150372]
[1722081249255,0.01247536,68320.0,68319.0,0.150372]
[1722081249628,0.02411072,68320.0,68319.0,0.150372]
[1722081249953,0.01247536,68320.0,68319.0,0.150372]
[1722081252437,0.00084,68320.0,68319.0,0.150372]
[1722081252641,0.01247168,68320.0,68319.0,0.150372]
[1722081252873,0.00084,68320.0,68319.0,0.150372]
[1722081253275,0.01247168,68320.0,68319.0,0.228972]
[1722081255915,0.00084,68320.0,68319.0,0.228972]
[1722081256301,0.01246544,68320.0,68319.0,0.228972]
[1722081256682,0.01246544,68320.0,68319.0,0.521716]
[1722081258837,0.03543757,68320.0,68319.0,0.521716]
[1722081259620,0.01246544,68320.0,68319.0,0.521716]
[1722081261823,0.01246544,68320.0,68319.0,0.81446]
[1722081261967,0.01246544,68320.0,68319.0,0.521716]
[1722081262870,0.00084,68320.0,68319.0,0.521716]
[1722081263071,0.01247845,68320.0,68319.0,0.521716]
[1722081263295,0.00084,68320.0,68319.0,0.521716]
[1722081263543,0.01247845,68320.0,68319.0,0.521716]
[1722081263745,0.01247289,68320.0,68319.0,0.521716]
[1722081263905,0.03544502,68320.0,68319.0,0.521716]
[1722081264103,0.03544502,68320.0,68319.0,0.228972]
[1722081264349,0.01247289,68320.0,68319.0,0.521716]
[1722081266495,0.0354454,68320.0,68319.0,0.521716]
[1722081266647,0.01247327,68320.0,68319.0,0.521716]
[1722081269963,0.0354454,68320.0,68319.0,0.521716]
[1722081270374,0.01247327,68320.0,68319.0,0.521716]
[1722081273156,0.00084,68320.0,68319.0,0.521716]
[1722081273346,0.01244738,68320.0,68319.0,0.81446]
[1722081273460,0.03541951,68320.0,68319.0,0.81446]
[1722081273913,0.01244738,68320.0,68319.0,0.81446]
[1722081275850,0.01244738,68320.0,68319.0,0.87486]
[1722081276545,0.00084,68320.0,68319.0,0.87486]
[1722081276928,0.01248358,68320.0,68319.0,0.87486]
[1722081278031,0.0354557,68320.0,68319.0,0.87486]
[1722081279475,0.01248358,68320.0,68319.0,0.87486]
[1722081279865,0.00084,68320.0,68319.0,0.87486]
[1722081280235,0.00084,68320.0,68319.0,1.167604]
[1722081280435,0.01248171,68320.0,68319.0,1.167604]
[1722081280652,0.00084,68320.0,68319.0,1.167604]
[1722081280865,0.01248171,68320.0,68319.0,1.167604]
[1722081282400,0.03545383,68320.0,68319.0,1.167604]
[1722081283343,0.02381212,68320.0,68319.0,1.167604]
[1722081283646,0.03545166,68320.0,68319.0,1.167604]
[1722081283844,0.01247954,68320.0,68319.0,1.167604]
[1722081286798,0.00084,68320.0,68319.0,1.167604]
[1722081287021,0.01249611,68320.0,68319.0,1.167604]
[1722081287238,0.00084,68320.0,68319.0,1.167604]
[1722081299734,0.00084,68320.0,68319.0,1.460348]
[1722081300073,0.00084,68320.0,68319.0,2.02385214]
[1722081300201,0.00084,68320.0,68319.0,2.02378595]
[1722081300400,0.00084,68320.0,68319.0,2.00180232]
[1722081300603,0.00084,68320.0,68319.0,2.00179985]
[1722081300821,0.00084,68320.0,68319.0,2.00080335]
[1722081301023,0.00084,68320.0,68319.0,1.89317984]
[1722081301227,0.00084,68320.0,68319.0,1.66811898]
[1722081302223,0.00084,68320.0,68319.0,1.62430143]
[1722081302426,0.00084,68320.0,68319.0,1.62130143]
[1722081302629,0.00084,68320.0,68319.0,1.63530143]
[1722081303528,0.0238097,68320.0,68319.0,1.63530143]
[1722081304067,0.00084,68320.0,68319.0,1.63530143]
[1722081304661,0.00084,68320.0,68319.0,1.92804543]
[1722081307303,0.02380953,68320.0,68319.0,1.92804543]
[1722081308584,0.00084,68320.0,68319.0,1.92804543]
[1722081311826,0.02380953,68320.0,68319.0,2.078305]
[1722081312230,0.00084,68320.0,68319.0,2.07829792]
[1722081312435,0.00084,68320.0,68319.0,2.12203875]
[1722081313192,0.00084,68320.0,68319.0,2.41478275]
[1722081313776,0.00084,68320.0,68319.0,2.43665317]
[1722081314278,0.00084,68320.0,68319.0,2.37104192]
[1722081314478,0.00084,68320.0,68319.0,2.37304192]
[1722081314634,0.00084,68320.0,68319.0,2.37104192]
[1722081315189,0.02296742,68320.0,68319.0,2.37104192]
[1722081315327,0.02296742,68320.0,68319.0,2.45534192]
[1722081315915,0.00084,68320.0,68319.0,2.33373557]
[1722081316119,0.00825,68328.0,68327.0,1.346535]
[1722081316267,0.00825,68328.0,68327.0,1.571535]
[1722081319021,0.00825,68328.0,68327.0,1.596535]
[1722081322211,0.00825,68328.0,68327.0,1.60510617]
[1722081323830,0.03121743,68328.0,68327.0,1.60510617]
[1722081324081,0.00825,68328.0,68327.0,1.60510617]
[1722081326960,0.03121744,68328.0,68327.0,1.60510617]
[1722081327530,0.03121744,68328.0,68327.0,1.72670899]
[1722081328341,0.00825,68328.0,68327.0,1.72670899]
[1722081333074,0.03121743,68328.0,68327.0,1.72670697]
[1722081333474,0.00825,68328.0,68327.0,1.72670697]
[1722081336093,0.03121743,68328.0,68327.0,1.72670697]
[1722081336471,0.03121743,68328.0,68327.0,1.64240697]
[1722081336671,0.03121743,68328.0,68327.0,1.72670697]
[1722081336877,0.00825,68328.0,68327.0,1.72670697]
[1722081340270,0.03121743,68328.0,68327.0,1.72670697]
[1722081340566,0.03121743,68328.0,68327.0,1.66320697]
[1722081341172,0.00825,68328.0,68327.0,1.66320697]
[1722081343157,0.00825,68328.0,68327.0,1.72420697]
[1722081343331,0.00825,68328.0,68327.0,1.60260617]
[1722081343577,0.00825,68328.0,68327.0,1.72420573]
[1722081344260,0.03121743,68328.0,68327.0,1.72420573]
[1722081344870,0.03121743,68328.0,68327.0,1.8744653]
[1722081345071,0.03121743,68328.0,68327.0,2.1671753]
[1722081345429,0.03121743,68328.0,68327.0,2.21092088]
[1722081345707,0.00825,68328.0,68327.0,2.21092088]
[1722081345910,0.00825,68328.0,68327.0,2.1671753]
[1722081347110,0.00825,68328.0,68327.0,2.16717458]
[1722081348249,0.00825,68328.0,68327.0,2.23286205]
[1722081348718,0.03121675,68328.0,68327.0,2.23286205]
[1722081350257,0.03121675,68328.0,68327.0,2.55756508]
[1722081350510,0.03121675,68328.0,68327.0,2.55757902]
[1722081350742,0.03121675,68328.0,68327.0,2.04557574]
[1722081350996,0.03121675,68328.0,68327.0,2.55757902]
[1722081351227,0.03121675,68328.0,68327.0,2.54557902]
[1722081351693,0.03121675,68328.0,68327.0,2.55957902]
[1722081352373,0.03121675,68328.0,68327.0,2.54657902]
[1722081352997,0.03121675,68328.0,68327.0,2.56057902]
[1722081353197,0.03121675,68328.0,68327.0,2.58247961]
[1722081353844,0.03121675,68328.0,68327.0,2.46088302]
[1722081354041,0.03121675,68328.0,68327.0,2.58247825]
[1722081356085,0.03121675,68328.0,68327.0,2.49486526]
[1722081357360,0.03121675,68328.0,68327.0,2.17017096]
[1722081357606,0.03121675,68328.0,68327.0,2.49486525]
[1722081360873,0.03121675,68328.0,68327.0,2.49486565]
[1722081363159,0.03121675,68328.0,68327.0,2.17017107]
[1722081363551,0.03121675,68328.0,68327.0,2.56060882]
[1722081363829,0.03121675,68328.0,68327.0,2.23590025]
[1722081364250,0.03121675,68328.0,68327.0,2.56061021]
[1722081364428,0.03121675,68328.0,68327.0,2.23590025]
[1722081364626,0.03121675,68328.0,68327.0,2.17017107]
[1722081364828,0.03121675,68328.0,68327.0,2.23590025]
[1722081365027,0.03121675,68328.0,68327.0,2.17017107]
[1722081365548,0.03121675,68328.0,68327.0,2.10917107]
[1722081367853,0.03121675,68328.0,68327.0,2.17487166]
[1722081368364,0.03121675,68328.0,68327.0,2.10917107]
[1722081368924,0.03121675,68328.0,68327.0,2.17487166]
[1722081369365,0.03121675,68328.0,68327.0,2.49958089]
[1722081369754,0.03121675,68328.0,68327.0,2.4338803]
[1722081369953,0.03121675,68328.0,68327.0,2.52148108]
[1722081371563,0.03121675,68328.0,68327.0,2.52148351]
[1722081374789,0.03121675,68328.0,68327.0,2.5214746]
[1722081375262,0.03121675,68328.0,68327.0,2.5850746]
[1722081376237,0.03121675,68328.0,68327.0,2.49747455]
[1722081378138,0.03121675,68328.0,68327.0,2.1727735]
[1722081378273,0.03121675,68328.0,68327.0,2.49746785]
[1722081381597,0.03121675,68328.0,68327.0,2.46548099]
[1722081381804,0.03121675,68328.0,68327.0,2.81317534]
[1722081382807,0.03121675,68328.0,68327.0,2.79917534]
[1722081383008,0.03121675,68328.0,68327.0,2.81317534]
[1722081383211,0.03121675,68328.0,68327.0,2.79917534]
[1722081383848,0.03121675,68328.0,68327.0,2.78517534]
[1722081384067,0.03121675,68328.0,68327.0,2.79917534]
[1722081384414,0.03121675,68328.0,68327.0,2.78517534]
[1722081384817,0.03121675,68328.0,68327.0,2.67758009]
[1722081385023,0.03121675,68328.0,68327.0,2.79915368]
[1722081385240,0.03121675,68328.0,68327.0,2.81315368]
[1722081388296,0.03121675,68328.0,68327.0,2.8131531]
[1722081391329,0.03121675,68328.0,68327.0,3.0631531]
[1722081391750,0.03121675,68328.0,68327.0,2.94156391]
[1722081391889,0.03121675,68328.0,68327.0,3.06315007]
[1722081392334,0.03121675,68328.0,68327.0,2.81315007]
[1722081394105,0.0628,68352.0,68344.0,0.252058]
[1722081394307,0.0628,68355.0,68344.0,1.39443947]
[1722081394429,0.0628,68355.0,68348.0,1.21421]
[1722081394630,0.0628,68355.0,68348.0,1.80167573]
[1722081395019,0.0628,68355.0,68348.0,2.09429573]
[1722081395217,0.0628,68355.0,68348.0,1.66166302]
[1722081395421,0.0628,68355.0,68348.0,1.61794568]
[1722081395626,0.0628,68355.0,68348.0,1.70224568]
[1722081396196,0.0628,68355.0,68348.0,1.71624568]
[1722081396598,0.0628,68355.0,68348.0,1.70224568]
[1722081396797,0.0628,68355.0,68348.0,1.71624568]
[1722081397201,0.0628,68355.0,68348.0,1.70224568]
[1722081397640,0.0628,68355.0,68348.0,1.71624568]
[1722081398524,0.0628,68355.0,68348.0,1.71624549]
[1722081398771,0.0628,68355.0,68348.0,1.73024549]
[1722081398949,0.0628,68355.0,68348.0,1.71624549]
[1722081399453,0.0628,68355.0,68348.0,1.73024549]
[1722081399734,0.0628,68355.0,68348.0,1.71624549]
[1722081399903,0.0628,68355.0,68348.0,1.73024549]
[1722081400261,0.0628,68355.0,68348.0,1.71624549]
[1722081400637,0.0628,68355.0,68348.0,1.73024549]